bitfinex/quotes_ETHUSD_20240928
["timestamp","ask_amount","ask_price","bid_price","bid_amount"]
[1727502442453,0.08700661,2696.0,2695.7,3.7096]
[1727502442654,0.08700661,2696.0,2695.7,7.4192]
[1727502442853,8.25983291,2696.3,2696.0,3.70915]
[1727502442854,1.16404549,2696.3,2696.0,3.70915]
[1727502443054,1.16404549,2696.5,2696.1,3.70905]
[1727502443300,1.16404549,2696.6,2696.4,3.70853]
[1727502443463,0.3368,2696.8,2696.3,3.7087]
[1727502443661,0.08772715,2696.5,2696.4,3.70864]
[1727502443863,0.3368,2696.8,2696.4,4.52594]
[1727502444083,0.08780021,2696.5,2696.4,4.52594]
[1727502444251,0.3368,2696.8,2696.4,4.52594]
[1727502444455,12.22188549,2697.0,2696.4,4.52594]
[1727502444456,0.08780021,2696.5,2696.4,4.52594]
[1727502444781,1.74806684,2696.9,2696.5,3.70843]
[1727502446298,7.6868,2697.0,2696.5,3.70843]
[1727502447193,0.08837846,2696.9,2696.5,3.70843]
[1727502448591,0.08837846,2696.9,2696.7,3.70822]
[1727502449505,0.08837846,2696.9,2696.5,3.70843]
[1727502450407,0.08837846,2696.9,2696.8,0.8327]
[1727502450572,0.08837846,2696.9,2696.8,4.54079]
[1727502450895,0.17682038,2696.9,2696.8,4.54079]
[1727502451054,0.08837846,2696.9,2696.8,4.54079]
[1727502451257,0.17682038,2696.9,2696.8,4.54079]
[1727502451470,0.08837846,2696.9,2696.8,0.8327]
[1727502451669,0.17722282,2696.9,2696.8,0.8327]
[1727502451894,0.08837846,2696.9,2696.8,0.8327]
[1727502452093,0.17722282,2696.9,2696.8,0.8327]
[1727502452262,0.08837846,2696.9,2696.8,0.8327]
[1727502452461,0.17722282,2696.9,2696.8,0.8327]
[1727502452667,0.08837846,2696.9,2696.8,0.8327]
[1727502452872,0.17722282,2696.9,2696.8,0.8327]
[1727502454403,0.17722282,2696.9,2696.8,4.54079]
[1727502454556,0.17722282,2696.9,2696.8,0.8327]
[1727502461897,0.17722282,2696.9,2696.8,4.54079]
[1727502465522,0.17722282,2696.9,2696.8,5.365703]
[1727502465725,0.17722282,2696.9,2696.8,6.16492487]
[1727502468196,0.17722282,2696.9,2696.8,6.09077538]
[1727502471795,0.17722282,2696.9,2696.8,4.54079]
[1727502472293,0.17722282,2696.9,2696.8,3.70809]
[1727502476525,0.17722282,2696.9,2696.8,4.68591954]
[1727502479308,0.17722282,2696.9,2696.8,3.70809]
[1727502486852,0.17722282,2696.9,2696.5,3.70849]
[1727502486853,0.3368,2696.8,2696.5,3.70849]
[1727502487029,0.3368,2696.8,2696.2,0.812]
[1727502487030,1.21404555,2696.7,2696.3,3.70869]
[1727502487232,0.3368,2696.5,2696.3,3.70875]
[1727502487431,0.3368,2696.5,2696.1,3.70892]
[1727502487641,0.08897617,2696.4,2696.1,3.70892]
[1727502488061,0.13897623,2696.4,2696.0,3.70912]
[1727502488274,0.3368,2696.2,2696.0,3.70912]
[1727502488629,0.08827424,2696.1,2696.0,3.70912]
[1727502491628,0.08827424,2696.1,2695.8,3.70941]
[1727502491930,1.30231979,2696.1,2695.8,3.70941]
[1727502492269,0.1382743,2696.1,2695.8,3.70941]
[1727502492465,0.40728851,2696.1,2695.8,3.70941]
[1727502493073,1.571334,2696.1,2695.7,3.70957]
[1727502493263,0.3368,2695.9,2695.7,3.70957]
[1727502493638,0.3368,2695.9,2695.8,3.70947]
[1727502493832,1.50084549,2696.1,2695.8,3.70947]
[1727502494173,1.99828895,2696.1,2695.8,3.70947]
[1727502496245,0.83424346,2696.1,2695.8,3.70947]
[1727502497437,0.08797807,2696.0,2695.8,3.70947]
[1727502497637,0.08797807,2696.0,2695.8,7.41877]
[1727502498079,0.08797807,2696.0,2695.8,3.70938]
[1727502499481,0.08797807,2696.0,2695.8,3.70937]
[1727502501863,0.13797813,2696.0,2695.6,3.70964]
[1727502502038,0.55635494,2696.0,2695.6,3.70964]
[1727502502700,0.3368,2695.9,2695.6,3.70964]
[1727502503043,0.08754668,2695.8,2695.6,3.70964]
[1727502504482,0.08754668,2695.8,2695.6,7.41931]
[1727502504688,0.08754668,2695.8,2695.6,3.70964]
[1727502504858,0.08754668,2695.8,2695.6,7.41929]
[1727502505066,0.08754668,2695.8,2695.6,3.70964]
[1727502505460,0.08754668,2695.8,2695.7,3.70961]
[1727502505785,0.42434668,2695.8,2695.7,3.70961]
[1727502505998,3.0,2695.4,2694.6,0.8004]
[1727502506284,0.72099606,2695.3,2694.8,3.71073]
[1727502506795,0.08673595,2695.2,2694.8,3.71073]
[1727502507091,0.05000006,2695.3,2694.8,3.71073]
[1727502507383,0.08658765,2695.2,2694.8,3.71073]
[1727502507591,0.08658765,2695.2,2694.6,4.5115]
[1727502507592,0.05000006,2695.3,2694.6,8.22252]
[1727502507888,0.05000006,2695.3,2694.6,9.19977054]
[1727502508651,0.05000006,2695.3,2694.6,5.48867054]
[1727502508851,0.08658765,2695.2,2694.7,3.71096]
[1727502509082,3.76018006,2695.3,2694.7,3.71096]
[1727502509464,4.15500772,2695.3,2694.7,3.71096]
[1727502510287,3.79689765,2695.2,2694.7,3.71096]
[1727502510794,3.71031,2695.2,2694.7,3.71096]
[1727502511415,0.08650321,2695.1,2694.7,3.71096]
[1727502511686,3.71031,2695.2,2694.7,3.71096]
[1727502512190,0.08650321,2695.1,2694.7,3.71096]
[1727502512396,3.71031,2695.2,2694.7,3.71096]
[1727502512552,0.08650321,2695.1,2694.7,3.71096]
[1727502512887,3.71031,2695.2,2694.7,3.71096]
[1727502513254,0.08650321,2695.1,2694.7,3.71096]
[1727502513653,3.71031,2695.2,2694.7,3.71096]
[1727502513996,0.08650321,2695.1,2694.7,3.71096]
[1727502514196,3.71031,2695.2,2694.7,3.71096]
[1727502514794,0.08650321,2695.1,2694.7,3.71096]
[1727502516487,3.71031,2695.2,2694.7,3.71096]
[1727502517262,0.08650321,2695.1,2694.7,3.71096]
[1727502521321,3.79695321,2695.1,2694.6,4.5115]
[1727502522017,0.08650321,2695.1,2694.6,4.5115]
[1727502523519,0.13650327,2695.1,2694.6,4.5115]
[1727502524217,0.08615594,2695.0,2694.6,4.5115]
[1727502526616,0.05000006,2695.1,2694.6,4.5115]
[1727502526799,0.08588041,2695.0,2694.6,4.5115]
[1727502527892,0.08588041,2695.0,2694.7,3.71097]
[1727502532530,0.08588041,2695.0,2694.6,4.51145]
[1727502534420,0.08588041,2695.0,2694.6,0.8004]
[1727502534626,0.08588041,2695.0,2694.7,3.71096]
[1727502539153,0.08588041,2695.0,2694.6,4.51144]
[1727502539434,0.08588041,2695.0,2694.5,3.71113]
[1727502540401,0.58657528,2695.0,2694.5,3.71113]
[1727502540630,0.58657528,2695.0,2694.6,3.71105]
[1727502540945,0.58657528,2695.0,2694.5,3.71113]
[1727502540946,0.05000006,2694.9,2694.5,3.71113]
[1727502541240,0.08572078,2694.8,2694.5,3.71113]
[1727502541451,0.05000006,2694.9,2694.5,7.42232]
[1727502542112,1.2105583,2694.9,2694.5,7.42232]
[1727502542441,1.2105583,2695.0,2694.5,7.42232]
[1727502542613,1.2105583,2695.0,2694.6,3.71112]
[1727502542614,0.08580523,2694.9,2694.6,3.71112]
[1727502543436,1.2105583,2695.0,2694.6,3.71112]
[1727502543610,0.08580523,2694.9,2694.5,3.71113]
[1727502543810,1.71688172,2695.0,2694.6,3.71111]
[1727502544058,0.08580523,2694.9,2694.6,3.71111]
[1727502544226,1.24636347,2694.9,2694.6,3.71111]
[1727502545246,1.2105583,2694.8,2694.4,3.71128]
[1727502545436,1.16055824,2694.8,2694.4,3.71128]
[1727502545739,0.08563632,2694.7,2694.4,3.71128]
[1727502545947,1.24619456,2694.7,2694.4,3.71128]
[1727502546129,1.16055824,2694.7,2694.4,3.71128]
[1727502547029,1.16055824,2694.6,2694.4,3.71128]
[1727502549232,1.54741099,2694.7,2694.5,3.71126]
[1727502549733,0.08547552,2694.6,2694.5,3.71126]
[1727502550149,1.54741099,2694.6,2694.5,3.71126]
[1727502551293,1.9376332,2694.6,2694.5,3.71126]
[1727502553642,1.94361185,2694.6,2694.5,3.71126]
[1727502555768,1.94361185,2694.6,2694.3,5.26142538]
[1727502556084,1.55486852,2694.4,2694.2,3.71167]
[1727502556386,1.16613445,2694.3,2694.2,3.71167]
[1727502556876,1.55486852,2694.4,2694.2,3.71167]
[1727502557453,1.16587682,2694.3,2694.2,3.71167]
[1727502557669,1.60486858,2694.4,2694.1,3.71175]
[1727502557876,1.16589264,2694.2,2694.1,3.71172]
[1727502558881,1.16589264,2694.2,2694.0,103.71192]
[1727502559083,1.16589264,2694.2,2694.0,100.0]
[1727502559084,1.43796876,2694.2,2694.0,100.0]
[1727502559385,2.21494082,2694.2,2694.0,100.0]
[1727502559684,1.55352378,2694.1,2694.0,103.71195]
[1727502559983,1.55352378,2694.2,2694.0,103.71195]
[1727502560143,1.1652223,2694.1,2694.0,103.71195]
[1727502560340,2.71850717,2694.1,2694.0,100.0]
[1727502560586,1.16498339,2694.1,2694.0,100.0]
[1727502560783,1.55352378,2694.2,2694.0,100.0]
[1727502561189,1.55352378,2694.1,2694.0,100.0]
[1727502561508,1.55352378,2694.2,2694.0,100.0]
[1727502562052,1.16469902,2694.1,2694.0,100.0]
[1727502562467,1.55352378,2694.2,2694.0,100.0]
[1727502562882,1.16447584,2694.1,2694.0,100.0]
[1727502563103,1.55352378,2694.1,2694.0,100.0]
[1727502563396,1.55352378,2694.2,2694.0,100.0]
[1727502563901,1.55352378,2694.1,2694.0,100.0]
[1727502570202,1.63840378,2694.1,2694.0,100.0]
[1727502570580,1.55352378,2694.1,2694.0,100.0]
[1727502571562,5.26533378,2694.1,2694.0,100.0]
[1727502571791,6.24285276,2694.1,2694.0,100.0]
[1727502572302,4.68932898,2694.1,2694.0,100.0]
[1727502572501,3.71181,2694.1,2694.0,100.0]
[1727502575002,5.26249407,2694.1,2694.0,100.0]
[1727502575207,3.71181,2694.1,2694.0,100.0]
[1727502575837,1.93835509,2694.2,2694.0,100.0]
[1727502577548,5.65004509,2694.2,2694.0,100.0]
[1727502577733,1.02604651,2694.1,2694.0,100.0]
[1727502577907,0.94116651,2694.1,2694.0,100.0]
[1727502579920,2.49113837,2694.1,2694.0,100.0]
[1727502584875,2.57581772,2694.1,2694.0,100.0]
[1727502585281,2.49113837,2694.1,2694.0,100.0]
[1727502585436,2.57581772,2694.1,2694.0,100.0]
[1727502590738,1.02584586,2694.1,2694.0,100.0]
[1727502590972,0.94116651,2694.1,2694.0,100.0]
[1727502591638,2.49206203,2694.1,2694.0,100.0]
[1727502591839,1.02584586,2694.1,2694.0,100.0]
[1727502592055,0.94116651,2694.1,2694.0,100.0]
[1727502592254,2.49210506,2694.1,2694.0,100.0]
[1727502592538,0.94116651,2694.1,2694.0,100.0]
[1727502593643,2.87944086,2694.1,2694.0,100.0]
[1727502594542,0.94116651,2694.1,2694.0,100.0]
[1727502594742,2.88029877,2694.1,2694.0,100.0]
[1727502595252,0.94116651,2694.1,2694.0,100.0]
[1727502595447,2.88029877,2694.1,2694.0,100.0]
[1727502599025,4.65297651,2694.1,2694.0,100.0]
[1727502599184,6.59233118,2694.1,2694.0,100.0]
[1727502599583,4.65297651,2694.1,2694.0,100.0]
[1727502600922,4.73764736,2694.1,2694.0,100.0]
[1727502601285,4.65297651,2694.1,2694.0,100.0]
[1727502601987,4.73764736,2694.1,2694.0,100.0]
[1727502602285,1.02583736,2694.1,2694.0,100.0]
[1727502602523,0.94116651,2694.1,2694.0,100.0]
[1727502604093,3.2688075,2694.1,2694.0,100.0]
[1727502604300,7.06528835,2694.1,2694.0,100.0]
[1727502604915,7.06866485,2694.1,2694.0,100.0]
[1727502605393,4.73764736,2694.1,2694.0,100.0]
[1727502605580,3.27153183,2694.1,2694.0,100.0]
[1727502606134,3.35618998,2694.1,2694.0,100.0]
[1727502606429,1.02582466,2694.1,2694.0,100.0]
[1727502606818,0.94116651,2694.1,2694.0,100.0]
[1727502608200,4.65297651,2694.1,2694.0,100.0]
[1727502608904,3.71181,2694.1,2694.0,100.0]
[1727502609726,3.79665239,2694.1,2694.0,100.0]
[1727502610830,8.06531565,2694.1,2694.0,100.0]
[1727502610985,5.34663777,2694.1,2694.0,100.0]
[1727502611189,8.1165015,2694.1,2694.0,100.0]
[1727502611502,10.40059974,2694.1,2694.0,100.0]
[1727502611730,10.78767949,2694.1,2694.0,100.0]
[1727502612354,12.54526889,2694.1,2694.0,100.0]
[1727502612568,10.78767949,2694.1,2694.0,100.0]
[1727502612746,14.63932097,2694.1,2694.0,100.0]
[1727502613107,14.63890359,2694.1,2694.0,100.0]
[1727502613841,26.25084059,2694.1,2694.0,66.12368483]
[1727502614027,24.15720589,2694.1,2694.0,66.12368483]
[1727502614525,14.66902051,2694.1,2694.0,66.12368483]
[1727502614732,12.54526889,2694.1,2694.0,66.12368483]
[1727502614926,14.63238941,2694.1,2694.0,66.12368483]
[1727502615441,12.54526889,2694.1,2694.0,66.12368483]
[1727502616056,10.78767949,2694.1,2694.0,66.12368483]
[1727502616252,14.63071822,2694.1,2694.0,66.12368483]
[1727502617925,10.78767949,2694.1,2694.0,66.12368483]
[1727502618129,14.63071822,2694.1,2694.0,66.12368483]
[1727502618330,10.78767949,2694.1,2694.0,66.12368483]
[1727502619461,12.54526889,2694.1,2694.0,66.12368483]
[1727502619617,9.43640106,2694.1,2694.0,66.12368483]
[1727502619817,10.98638644,2694.1,2694.0,66.12368483]
[1727502620042,7.78767949,2694.1,2694.0,66.12368483]
[1727502620860,10.78767949,2694.1,2694.0,66.12368483]
[1727502623537,13.98566948,2694.1,2694.0,66.12368483]
[1727502624165,10.78767949,2694.1,2694.0,66.12368483]
[1727502624958,13.98566948,2694.1,2694.0,66.12368483]
[1727502626265,13.98379662,2694.1,2694.0,66.12368483]
[1727502626917,27.45913962,2694.1,2694.0,66.12368483]
[1727502627118,29.21054363,2694.1,2694.0,66.12368483]
[1727502629020,26.0144265,2694.1,2694.0,66.12368483]
[1727502629520,29.20901756,2694.1,2694.0,66.12368483]
[1727502630257,27.70505559,2694.1,2694.0,57.98433958]
[1727502630495,28.35350326,2694.1,2694.0,51.38140129]
[1727502631159,24.96547026,2694.1,2694.0,51.38140129]
[1727502632052,25.01487122,2694.1,2694.0,45.76794224]
[1727502632491,25.01487122,2694.1,2694.0,40.15448319]
[1727502632786,21.17183249,2694.1,2694.0,40.15448319]
[1727502633093,21.17183249,2694.1,2694.0,34.54102414]
[1727502633298,25.00285791,2694.1,2694.0,34.54102414]
[1727502633478,25.00285791,2694.1,2694.0,31.63600955]
[1727502633479,28.96585791,2694.1,2694.0,31.63600955]
[1727502633799,25.13483249,2694.1,2694.0,26.46553525]
[1727502633948,25.13483249,2694.1,2694.0,20.8520762]
[1727502633949,25.08483249,2694.1,2694.0,20.8520762]
[1727502634146,28.91512009,2694.1,2694.0,15.23861715]
[1727502634346,28.91512009,2694.1,2694.0,9.6251581]
[1727502634586,28.91512009,2694.1,2694.0,4.01169905]
[1727502635259,25.08483249,2694.1,2694.0,4.01169905]
[1727502635585,28.91470524,2694.1,2694.0,4.01169905]
[1727502636583,25.00170524,2694.1,2694.0,4.01169905]
[1727502637683,12.65017211,2694.1,2694.0,4.01169905]
[1727502637901,20.89556615,2694.1,2694.0,4.01169905]
[1727502638195,17.1542331,2694.1,2694.0,4.01169905]
[1727502638485,9.8583511,2694.1,2694.0,4.01169905]
[1727502639475,10.4083511,2694.1,2694.0,4.01169905]
[1727502639872,17.51268415,2694.1,2694.0,2.72076435]
[1727502640085,15.92879205,2694.1,2694.0,2.72076435]
[1727502640287,10.4083511,2694.1,2694.0,2.72076435]
[1727502640469,12.0989193,2694.1,2694.0,2.72076435]
[1727502640669,15.92879205,2694.1,2694.0,2.72076435]
[1727502640875,12.0989193,2694.1,2694.0,2.72076435]
[1727502641072,15.92879205,2694.1,2694.0,2.72076435]
[1727502641751,16.31694543,2694.1,2694.0,2.72076435]
[1727502642579,12.48707268,2694.1,2694.0,2.72076435]
[1727502643194,16.31694543,2694.1,2694.0,2.72076435]
[1727502643958,12.48707268,2694.1,2694.0,2.72076435]
[1727502644972,10.79650448,2694.1,2694.0,2.72076435]
[1727502647293,14.62637723,2694.1,2694.0,2.72076435]
[1727502649303,12.48707268,2694.1,2694.0,2.72076435]
[1727502649596,14.62999761,2694.1,2694.0,2.72076435]
[1727502649802,16.32056581,2694.1,2694.0,2.72076435]
[1727502650187,12.48707268,2694.1,2694.0,2.72076435]
[1727502650883,10.79650448,2694.1,2694.0,2.72076435]
[1727502651463,40.20191848,2694.1,2694.0,2.72076435]
[1727502651659,41.89248668,2694.1,2694.0,2.72076435]
[1727502653294,45.80548668,2694.1,2694.0,2.72076435]
[1727502655000,45.80548668,2694.1,2694.0,0.31870637]
[1727502655369,44.11491848,2694.1,2694.0,0.31870637]
[1727502655963,34.90585448,2694.1,2694.0,0.31870637]
[1727502660518,33.35565248,2694.1,2694.0,0.31870637]
[1727502661220,20.31098748,2694.1,2694.0,0.31870637]
[1727502667537,24.22398748,2694.1,2694.0,0.31870637]
[1727502667690,0.55,2693.1,2693.0,0.8057]
[1727502668059,11.24431137,2693.1,2693.0,0.8057]
[1727502668420,11.63127239,2693.1,2693.0,0.8057]
[1727502668821,7.26402,2692.5,2692.4,0.131414]
[1727502669125,10.60279088,2692.5,2692.4,0.131414]
[1727502669320,10.60279088,2692.5,2690.9,2.99018595]
[1727502669321,3.71508,2691.8,2691.4,1.54998538]
[1727502669554,1.93901691,2691.5,2691.2,4.2881338]
[1727502669731,1.55119452,2691.5,2691.3,4.14448338]
[1727502670055,1.55119452,2691.5,2691.4,0.7583]
[1727502670256,1.55119452,2691.5,2691.4,2.20828538]
[1727502670458,1.55119452,2691.5,2691.4,1.97199526]
[1727502670762,5.26659452,2691.5,2691.4,0.1583]
[1727502671060,3.7154,2691.5,2691.4,0.1583]
[1727502671264,5.26497707,2691.5,2691.4,0.1583]
[1727502671568,5.26503717,2691.5,2691.4,0.1583]
[1727502671951,1.54963717,2691.5,2691.4,0.1583]
[1727502672146,1.54963717,2691.6,2691.3,1.54998538]
[1727502672358,3.71512,2691.7,2690.9,2.99018595]
[1727502672359,5.39425612,2691.5,2690.9,2.99018595]
[1727502672522,1.54963717,2691.4,2691.3,1.54998538]
[1727502673662,1.54963717,2691.4,2691.3,2.30828538]
[1727502673828,5.26516717,2691.4,2691.3,2.30828538]
[1727502674030,1.54963717,2691.4,2691.3,2.30828538]
[1727502674342,5.26516717,2691.4,2691.3,2.30828538]
[1727502675238,3.71553,2691.4,2691.3,2.30828538]
[1727502675439,3.71553,2691.4,2691.3,0.7583]
[1727502675836,3.8446179,2691.4,2691.3,0.7583]
[1727502678426,4.26567,2691.3,2691.2,0.7583]
[1727502678651,4.26567,2691.3,2690.9,2.99018595]
[1727502678652,3.71609,2691.0,2690.9,2.99018595]
[1727502679067,3.84436205,2691.0,2690.9,2.99018595]
[1727502679239,7.39436205,2691.0,2690.9,2.99018595]
[1727502680328,11.37473625,2691.0,2690.9,2.99018595]
[1727502680550,9.39436205,2691.0,2690.9,2.99018595]
[1727502681051,10.93641703,2691.0,2690.9,2.99018595]
[1727502681544,3.67827205,2691.0,2690.9,5.29847133]
[1727502681891,0.12827205,2691.0,2690.9,4.27833308]
[1727502682032,0.12827205,2691.0,2690.9,9.54453846]
[1727502682230,0.05000006,2691.4,2691.0,0.7583]
[1727502682431,0.05000006,2691.4,2691.3,2.30828538]
[1727502682745,0.05000006,2691.6,2691.4,0.7583]
[1727502682931,3.71514,2691.7,2691.6,0.7583]
[1727502683356,6.84357056,2691.7,2691.6,2.30828538]
[1727502683556,3.84357056,2691.7,2691.6,2.30828538]
[1727502684366,4.39357056,2691.7,2691.6,0.7583]
[1727502684575,0.12843056,2691.7,2691.6,4.53662142]
[1727502684871,3.71512,2691.7,2691.6,0.7583]
[1727502685045,3.84395469,2691.7,2691.6,0.7583]
[1727502685871,4.39395469,2691.7,2691.6,0.7583]
[1727502686575,4.39395469,2691.7,2691.5,0.7583]
[1727502686576,4.26527,2691.6,2691.5,0.7583]
[1727502686911,3.8440502,2691.6,2691.5,0.7583]
[1727502687213,0.1287902,2691.6,2691.5,0.7583]
[1727502687425,3.8440502,2691.6,2691.5,0.7583]
[1727502688226,4.3940502,2691.6,2691.5,0.7583]
[1727502688513,4.44405026,2691.6,2691.5,0.7083]
[1727502689075,4.3940502,2691.6,2691.5,0.7083]
[1727502689306,4.44405026,2691.6,2691.5,0.7083]
[1727502689617,4.3940502,2691.6,2691.5,0.7083]
[1727502690426,3.8440502,2691.6,2691.5,0.7083]
[1727502690651,0.1287902,2691.6,2691.5,0.7083]
[1727502691291,0.1287902,2691.6,2691.5,1.11572013]
[1727502691708,3.76498006,2691.8,2691.5,1.11572013]
[1727502691933,3.84402919,2691.6,2691.5,0.7083]
[1727502692095,3.71526,2691.6,2691.5,0.7083]
[1727502692433,3.84402919,2691.6,2691.5,0.7083]
[1727502694541,6.84402919,2691.6,2691.5,0.7083]
[1727502695807,6.89402925,2691.6,2691.5,0.7083]
[1727502696008,6.84402919,2691.6,2691.5,0.7083]
[1727502703112,6.89402925,2691.6,2691.5,0.7083]
[1727502703930,6.84402919,2691.6,2691.5,0.7083]
[1727502706033,3.12876919,2691.6,2691.5,0.7083]
[1727502706366,3.12876919,2691.6,2691.5,2.26159729]
[1727502706780,6.84402919,2691.6,2691.5,2.26159729]
[1727502707459,8.38608417,2691.6,2691.5,2.26159729]
[1727502708133,3.71595,2691.1,2691.0,0.7709]
[1727502708445,3.84459493,2691.1,2691.0,2.32419729]
[1727502710457,3.84459493,2691.1,2691.0,4.13771749]
[1727502710775,0.12864493,2691.1,2691.0,4.13771749]
[1727502711358,0.12864493,2691.1,2691.0,8.56659783]
[1727502711584,5.25750498,2691.5,2691.1,0.798]
[1727502711913,1.54205498,2691.5,2691.4,0.798]
[1727502712033,1.93316885,2691.7,2691.4,0.798]
[1727502712034,1.54205498,2691.7,2691.4,0.798]
[1727502712238,1.54205498,2691.7,2691.6,3.36681749]
[1727502712764,1.54205498,2691.9,2691.7,0.798]
[1727502712966,1.54205498,2691.9,2691.8,4.16481749]
[1727502713535,1.54205498,2692.0,2691.8,4.16481749]
[1727502713774,1.54205498,2692.0,2691.9,3.36681749]
[1727502714144,1.54205498,2692.0,2691.9,4.16481749]
[1727502715582,8.25663498,2692.1,2692.0,0.798]
[1727502715788,1.54205498,2692.1,2692.0,0.798]
[1727502716090,1.54205498,2692.2,2692.0,0.798]
[1727502716238,1.54205498,2692.2,2691.9,3.36681749]
[1727502716239,1.54205498,2692.3,2692.2,0.798]
[1727502717374,5.25622498,2692.4,2692.2,0.798]
[1727502718049,3.71471,2692.0,2691.4,3.71553]
[1727502718399,3.71471,2692.0,2691.6,0.798]
[1727502718400,1.54802491,2691.9,2691.6,0.798]
[1727502718697,1.54802491,2691.9,2691.3,0.798]
[1727502718698,5.26324491,2691.7,2691.3,0.798]
[1727502718866,3.71527,2691.6,2691.3,0.798]
[1727502719194,5.26329491,2691.6,2691.3,0.798]
[1727502719365,0.12845843,2691.5,2691.3,0.798]
[1727502720866,3.84385843,2691.5,2691.3,0.798]
[1727502721099,1.54802491,2691.4,2691.0,0.798]
[1727502721398,3.71582,2691.2,2691.0,0.798]
[1727502721746,3.84395745,2691.1,2691.0,0.798]
[1727502722973,5.39198236,2691.1,2691.0,0.798]
[1727502723369,5.39198236,2691.1,2690.9,6.35700344]
[1727502723668,0.822,2691.0,2690.9,2.99018595]
[1727502723871,12.53778805,2691.0,2690.9,2.99018595]
[1727502724095,11.71468799,2691.0,2690.9,2.99018595]
[1727502724296,9.39401462,2691.0,2690.9,2.99018595]
[1727502725334,12.53668799,2691.0,2690.9,2.99018595]
[1727502725928,10.21601462,2691.0,2690.9,2.99018595]
[1727502727300,11.71357055,2691.0,2690.9,2.99018595]
[1727502727837,11.71356477,2691.0,2690.9,2.99018595]
[1727502728425,9.39401462,2691.0,2690.9,2.99018595]
[1727502728937,9.78081011,2691.0,2690.9,2.99018595]
[1727502729136,12.0990776,2691.0,2690.9,2.99018595]
[1727502730098,9.78081011,2691.0,2690.9,2.99018595]
[1727502730394,12.09843602,2691.0,2690.9,2.99018595]
[1727502730624,12.09843222,2691.0,2690.9,2.99018595]
[1727502730824,12.0984246,2691.0,2690.9,2.99018595]
[1727502731044,10.60851011,2691.0,2690.9,2.99018595]
[1727502731215,13.9753276,2691.0,2690.9,2.99018595]
[1727502731594,10.60851011,2691.0,2690.9,2.99018595]
[1727502731797,13.31465195,2691.0,2690.9,2.99018595]
[1727502732242,10.60851011,2691.0,2690.9,2.99018595]
[1727502732449,13.9753276,2691.0,2690.9,2.99018595]
[1727502734142,16.67737711,2691.0,2690.9,2.99018595]
[1727502735839,13.9753276,2691.0,2690.9,2.99018595]
[1727502737014,9.37191851,2691.0,2690.9,2.99018595]
[1727502737232,7.05851011,2691.0,2690.9,2.99018595]
[1727502737429,7.10851017,2691.0,2690.9,2.99018595]
[1727502737653,9.0362379,2691.0,2690.9,2.99018595]
[1727502737838,8.98623784,2691.0,2690.9,2.99018595]
[1727502738155,14.52535533,2691.0,2690.9,2.99018595]
[1727502738354,23.94081405,2690.0,2689.6,3.849424]
[1727502738569,23.94081405,2690.0,2689.6,4.57104815]
[1727502738854,0.12559671,2689.9,2689.6,4.57104815]
[1727502739154,0.12559671,2689.9,2689.6,0.85303815]
[1727502740239,0.12559671,2689.9,2689.6,4.57105815]
[1727502740958,0.12559671,2689.9,2689.6,4.57098815]
[1727502741159,3.71782,2689.8,2689.6,0.131414]
[1727502741365,3.71782,2689.8,2689.6,0.900414]
[1727502741518,7.43569,2689.8,2689.6,0.900414]
[1727502742130,0.12597,2689.7,2689.6,0.900414]
[1727502742330,6.84385,2689.7,2689.6,0.131414]
[1727502742615,9.4437777,2689.7,2689.6,0.131414]
[1727502742928,9.39377764,2689.7,2689.6,0.131414]
[1727502743147,10.22147764,2689.7,2689.6,0.131414]
[1727502743462,15.13028052,2689.7,2689.6,0.131414]
[1727502744070,1.66515904,2689.7,2689.6,0.900414]
[1727502744246,0.12589764,2689.7,2689.6,1.3622694]
[1727502744553,23.94081405,2690.0,2689.6,0.900414]
[1727502744947,23.94081405,2690.0,2689.9,4.48661]
[1727502745128,23.94081405,2690.0,2689.9,5.64374075]
[1727502745816,24.05961231,2690.0,2689.9,5.64374075]
[1727502750974,24.05961231,2690.0,2689.9,0.769]
[1727502754974,24.05961231,2690.0,2689.9,4.48661]
[1727502755328,23.94081405,2690.0,2689.9,4.48661]
[1727502755525,24.05784371,2690.0,2689.9,4.48661]
[1727502757151,24.05784371,2690.0,2689.9,0.769]
[1727502758646,24.05784371,2690.0,2689.7,4.12501749]
[1727502760351,27.77536371,2690.0,2689.7,4.12501749]
[1727502760571,24.05784371,2690.0,2689.9,3.71761]
[1727502761635,24.05784371,2690.0,2689.8,3.71768]
[1727502762489,24.05784371,2690.0,2689.7,4.12501749]
[1727502762691,24.05784371,2690.0,2689.7,7.84280749]
[1727502763064,24.05784371,2690.0,2689.7,4.12501749]
[1727502763251,24.05784371,2690.0,2689.7,7.84289749]
[1727502764251,24.05784371,2690.0,2689.8,3.71773]
[1727502766904,24.05784371,2690.0,2689.7,4.12501749]
[1727502767314,25.21234231,2690.0,2689.7,4.12501749]
[1727502767613,24.05784371,2690.0,2689.8,3.71769]
[1727502768604,24.05784371,2690.0,2689.9,3.71761]
[1727502769543,24.05784371,2690.0,2689.9,4.55345539]
[1727502769884,23.94081405,2690.0,2689.9,4.55345539]
[1727502770210,24.04417398,2690.0,2689.9,4.55345539]
[1727502770709,16.55956191,2690.0,2689.9,4.55345539]
[1727502770881,16.55956191,2690.0,2689.9,6.09650885]
[1727502772003,16.55956191,2690.0,2689.9,6.17084404]
[1727502772211,16.55956191,2690.0,2689.9,6.09650885]
[1727502774310,16.55956191,2690.0,2689.7,7.08464749]
[1727502774616,16.55956191,2690.0,2689.9,3.71761]
[1727502777249,16.55956191,2690.0,2689.6,3.49823149]
[1727502777452,16.55956191,2690.0,2689.7,3.71781]
[1727502779253,16.55956191,2690.0,2689.6,0.131414]
[1727502779254,0.7984,2689.9,2689.6,0.131414]
[1727502779461,1.9528986,2689.9,2689.6,0.131414]
[1727502779615,0.10337766,2689.8,2689.6,0.131414]
[1727502779816,0.10337766,2689.8,2689.4,3.71824]
[1727502780020,1.25787626,2689.8,2689.4,3.71824]
[1727502780245,3.71789,2689.7,2689.3,3.36681749]
[1727502780431,4.97571626,2689.8,2689.3,3.36681749]
[1727502780432,8.69356626,2689.8,2689.3,3.36681749]
[1727502780644,0.10321187,2689.6,2689.3,3.36681749]
[1727502780842,1.25779337,2689.7,2689.3,3.36681749]
[1727502781030,0.10312897,2689.5,2689.3,3.36681749]
[1727502781214,4.8723886,2689.7,2689.3,3.36681749]
[1727502781417,0.10304606,2689.4,2689.3,3.36681749]